bitfinex-derivatives/quotes_ETHF0:USTF0_20250910
["timestamp","ask_amount","ask_price","bid_price","bid_amount"]
[1757531330784,3.534,4335.6,4335.5,0.3309]
[1757531330987,3.534,4335.6,4335.5,0.6424]
[1757531331692,3.534,4335.6,4335.5,0.3115]
[1757531331693,3.6359,4335.6,4335.5,0.3115]
[1757531334693,3.6359,4335.6,4335.5,0.4322]
[1757531336191,3.534,4335.6,4335.5,0.6424]
[1757531338590,3.534,4335.6,4335.5,0.4322]
[1757531338888,3.6364,4335.6,4335.5,0.4322]
[1757531339288,3.6364,4335.6,4335.1,0.2963]
[1757531339492,3.6364,4335.6,4335.5,0.6213]
[1757531339793,3.534,4335.6,4335.5,0.6213]
[1757531340093,3.6364,4335.6,4335.5,0.4241]
[1757531340393,3.8734,4335.6,4335.5,0.4241]
[1757531341485,3.8734,4335.6,4335.5,0.2963]
[1757531341887,3.8734,4335.6,4335.5,0.4241]
[1757531342092,3.534,4335.6,4335.5,0.826]
[1757531342389,3.2078,4335.6,4335.5,0.826]
[1757531343398,3.638,4335.6,4335.5,0.4241]
[1757531343986,3.638,4335.6,4335.5,0.2963]
[1757531344188,0.3278,4335.3,4335.0,0.417]
[1757531344392,3.5356,4335.1,4335.0,0.6142]
[1757531344696,3.638,4335.1,4335.0,0.2963]
[1757531345098,0.4302,4334.8,4334.7,0.4613]
[1757531345298,0.4302,4334.8,4334.2,0.2963]
[1757531345499,0.3278,4334.3,4334.0,0.1207]
[1757531345695,0.4302,4334.2,4334.1,0.2963]
[1757531345897,3.638,4334.2,4334.1,0.2963]
[1757531346299,0.1024,4334.1,4333.7,0.2963]
[1757531346499,0.3278,4333.8,4333.7,0.4935]
[1757531346700,0.1024,4334.1,4334.0,0.5297]
[1757531346701,0.1639,4334.1,4334.0,0.5297]
[1757531346997,0.3278,4334.1,4334.0,0.826]
[1757531348702,0.3278,4334.1,4334.0,0.6213]
[1757531348901,0.4302,4334.1,4334.0,0.4241]
[1757531349305,0.4302,4334.1,4334.0,0.2963]
[1757531349603,0.4302,4334.1,4334.0,0.6213]
[1757531349604,0.3278,4334.1,4334.0,0.6213]
[1757531350795,3.4448,4334.2,4333.6,0.2963]
[1757531350999,3.5356,4333.7,4333.6,0.2963]
[1757531351206,3.875,4333.7,4333.6,0.2963]
[1757531351705,3.7726,4333.7,4333.6,0.4935]
[1757531351901,3.6087,4333.7,4333.6,0.6982]
[1757531352803,3.875,4333.7,4333.6,0.2963]
[1757531353102,3.7726,4333.7,4333.6,0.4935]
[1757531353798,3.7726,4333.7,4333.6,0.6982]
[1757531355101,3.875,4333.7,4333.6,0.2963]
[1757531357007,3.7726,4333.7,4333.6,0.4935]
[1757531357208,3.5356,4333.7,4333.6,0.4935]
[1757531357509,3.7726,4333.7,4333.6,0.4935]
[1757531357704,3.5356,4333.7,4333.6,0.6982]
[1757531357905,3.6087,4333.7,4333.6,0.6982]
[1757531358212,3.4448,4333.7,4333.6,0.6982]
[1757531358612,3.6087,4333.7,4333.6,0.6982]
[1757531360004,3.7726,4333.7,4333.6,0.6982]
[1757531362507,3.2078,4333.7,4333.6,0.6982]
[1757531362710,3.3717,4333.7,4333.6,0.6982]
[1757531362921,3.5356,4333.7,4333.6,0.6982]
[1757531367226,0.1022,4333.6,4333.1,0.3187]
[1757531367423,0.1636,4333.2,4333.1,0.7481]
[1757531367827,3.2078,4333.7,4333.1,0.4294]
[1757531368124,0.3272,4333.6,4333.5,0.3439]
[1757531368528,0.3272,4333.6,4333.5,0.6626]
[1757531370834,0.4294,4333.6,4333.5,0.6626]
[1757531371334,0.3272,4332.7,4332.6,0.5319]
[1757531371630,0.3272,4332.7,4332.6,0.7481]
[1757531372134,0.1636,4332.7,4332.6,0.7481]
[1757531372534,3.2078,4332.8,4332.6,0.7481]
[1757531372732,3.2078,4332.8,4332.7,0.7481]
[1757531372929,3.4438,4333.5,4333.4,0.7481]
[1757531373131,3.2078,4333.5,4333.4,0.7481]
[1757531374040,3.771,4334.0,4333.9,0.2132]
[1757531374337,3.771,4334.0,4333.9,0.7481]
[1757531375937,3.535,4334.0,4333.9,0.7481]
[1757531376832,3.6372,4334.0,4333.9,0.5319]
[1757531377038,0.3272,4333.6,4333.5,0.3439]
[1757531377240,0.3272,4333.6,4333.5,0.6626]
[1757531377438,0.3272,4333.6,4333.5,0.8788]
[1757531379927,3.2078,4334.0,4333.5,0.8788]
[1757531380138,3.2078,4334.0,4333.5,0.5601]
[1757531380332,3.535,4334.0,4333.9,0.5319]
[1757531384538,3.535,4334.0,4333.9,0.7481]
[1757531384742,3.3714,4334.0,4333.9,0.7481]
[1757531384936,3.535,4334.0,4333.9,0.7481]
[1757531385434,3.2078,4334.0,4333.9,0.7481]
[1757531385838,3.3714,4334.6,4334.5,0.8788]
[1757531386138,3.2078,4334.6,4334.5,1.1148]
[1757531386539,3.2078,4335.2,4335.0,0.1307]
[1757531386733,3.3714,4335.2,4335.1,0.7481]
[1757531387941,3.6372,4335.2,4335.1,0.3187]
[1757531391539,3.6372,4335.2,4334.6,19.0]
[1757531391741,0.1022,4335.1,4334.7,0.3187]
[1757531391942,3.2078,4335.2,4335.0,0.1307]
[1757531392244,0.1636,4335.1,4335.0,0.8788]
[1757531392640,0.3272,4335.1,4335.0,0.8788]
[1757531393040,0.4294,4335.1,4335.0,0.4494]
[1757531394637,0.3272,4335.1,4335.0,0.4494]
[1757531394846,0.3272,4335.1,4335.0,0.6626]
[1757531395243,0.3272,4335.1,4335.0,0.8788]
[1757531397444,0.1636,4335.1,4335.0,0.8788]
[1757531397645,3.2078,4335.2,4335.1,0.3119]
[1757531397846,3.5358,4335.2,4335.1,0.7347]
[1757531399349,3.5358,4335.2,4335.1,0.5287]
[1757531399653,3.6383,4335.2,4335.1,0.5287]
[1757531399846,3.6383,4335.2,4335.1,0.3119]
[1757531400853,0.1025,4335.1,4334.6,0.3119]
[1757531401154,3.2078,4335.2,4334.5,19.6594]
[1757531401155,0.328,4334.6,4334.5,19.6594]
[1757531401354,0.4305,4334.6,4334.5,0.4426]
[1757531401559,0.328,4334.6,4334.5,0.8654]
[1757531402951,0.4305,4334.6,4334.5,0.4426]
[1757531403147,0.328,4334.6,4334.5,0.4426]
[1757531403353,0.328,4334.6,4334.5,0.6594]
[1757531404061,0.4305,4334.6,4334.5,0.6594]
[1757531405263,0.328,4334.1,4334.0,0.6594]
[1757531405459,3.5358,4334.1,4334.0,0.6594]
[1757531406554,3.6383,4334.1,4334.0,0.4426]
[1757531406755,3.5358,4334.1,4334.0,0.6594]
[1757531407162,3.5358,4334.1,4334.0,0.8654]
[1757531410162,3.5358,4334.1,4334.0,0.6594]
[1757531410362,3.6383,4334.1,4334.0,0.3119]
[1757531410760,0.4305,4333.6,4333.1,0.3119]
[1757531411062,0.164,4333.2,4333.1,0.7347]
[1757531411566,3.2078,4333.6,4333.5,0.8593]
[1757531411754,3.5358,4333.6,4333.5,0.8593]
[1757531412860,3.6383,4333.6,4333.5,0.4365]
[1757531413264,3.6383,4333.6,4333.1,0.3119]
[1757531413456,3.5358,4333.6,4333.1,0.3119]
[1757531413662,0.328,4333.2,4333.1,0.5287]
[1757531414964,0.4305,4333.2,4333.1,0.3119]
[1757531415465,0.328,4333.2,4333.1,0.5287]
[1757531415864,0.328,4333.2,4333.1,0.7347]
[1757531419762,0.328,4332.7,4332.6,0.3119]
[1757531419963,3.6379,4332.7,4332.6,0.3119]
[1757531420161,3.6379,4332.7,4332.6,0.5287]
[1757531420362,3.5358,4332.7,4332.6,0.5287]
[1757531420763,3.5358,4332.7,4332.6,0.3119]
[1757531420962,3.6379,4332.7,4332.6,0.3119]
[1757531421566,3.5358,4332.7,4332.6,0.5287]
[1757531422663,3.5358,4332.7,4332.6,0.7347]
[1757531427177,3.5358,4332.7,4332.6,0.5287]
[1757531427379,3.638,4332.7,4332.6,0.5287]
[1757531427577,3.638,4332.7,4332.6,0.3119]
[1757531427884,0.4292,4332.4,4332.3,0.3016]
[1757531428086,0.4292,4332.4,4332.1,0.3016]
[1757531428087,0.1022,4332.3,4332.1,0.3016]
[1757531428279,3.873,4332.2,4332.1,0.3016]
[1757531428978,3.873,4332.2,4331.8,0.3016]
[1757531428979,0.1022,4332.1,4331.8,0.3016]
[1757531429178,3.7708,4332.2,4331.6,0.3016]
[1757531429179,0.4292,4331.7,4331.6,0.3016]
[1757531429376,3.637,4331.7,4331.6,0.3016]
[1757531429585,3.5348,4331.7,4331.6,0.5069]
[1757531431980,3.5348,4331.7,4331.6,0.7044]
[1757531433189,3.3713,4332.2,4332.1,0.7044]
[1757531433385,3.6073,4332.2,4332.1,0.7044]
[1757531434891,3.7708,4332.2,4332.1,0.7044]
[1757531438094,0.2361854,4334.0,4332.1,0.7044]
[1757531438095,3.3713,4333.2,4333.1,0.7044]
[1757531438886,3.2078,4333.2,4333.1,0.7044]
[1757531439593,3.3713,4333.2,4333.1,0.7044]
[1757531440389,0.327,4332.7,4332.0,0.3666]
[1757531440592,3.5348,4332.6,4332.5,0.6375]
[1757531440797,3.5348,4332.6,4332.5,0.835]
[1757531442094,3.3713,4332.6,4332.5,0.835]
[1757531442395,0.1635,4332.6,4332.5,0.835]
[1757531444098,0.236,4333.0,4332.5,0.835]
[1757531444294,0.3995,4333.0,4332.9,0.2053]
[1757531444496,0.563,4333.0,4332.9,0.5069]
[1757531446602,0.6652,4333.0,4332.9,0.3016]
[1757531447694,0.236,4333.0,4332.1,0.3016]
[1757531447895,0.327,4332.1,4332.0,0.5334]
[1757531448502,0.327,4332.1,4332.0,0.835]
[1757531452011,0.327,4332.1,4332.0,0.6375]
[1757531452201,0.327,4332.1,4332.0,0.835]
[1757531452810,0.1635,4332.1,4332.0,0.835]
[1757531453004,0.327,4332.1,4332.0,0.835]
[1757531453310,0.4292,4332.1,4332.0,0.4322]
[1757531453801,0.4292,4332.1,4331.5,0.1246]
[1757531453802,0.6652,4332.1,4331.6,0.3016]
[1757531454006,3.5348,4331.7,4331.6,0.5069]
[1757531454513,3.873,4331.7,4331.6,0.3016]
[1757531454809,3.7708,4331.7,4331.6,0.5069]
[1757531456412,3.7708,4331.7,4331.6,0.7044]
[1757531457504,3.4438,4331.7,4331.6,0.7044]
[1757531458307,3.2078,4331.7,4331.6,0.7044]
[1757531459011,3.372,4331.7,4331.6,0.7044]
[1757531459907,3.5362,4331.7,4331.6,0.5125]
[1757531460501,3.5362,4331.7,4331.6,0.3016]
[1757531460707,3.6388,4331.7,4331.6,0.3016]
[1757531461515,3.5362,4331.7,4331.6,0.5125]
[1757531461817,3.7722,4331.7,4331.6,0.5125]
[1757531462016,3.5362,4331.7,4331.6,0.7281]
[1757531462211,3.4438,4331.7,4331.6,0.7281]
[1757531462411,3.608,4331.7,4331.6,0.7281]
[1757531463011,3.372,4331.7,4331.6,0.7281]
[1757531465217,3.6388,4331.7,4331.6,0.3016]
[1757531465415,0.3284,4331.4,4331.1,0.2982]
[1757531465606,0.1026,4331.6,4331.1,0.2982]
[1757531465607,3.5362,4331.2,4331.1,0.5091]
[1757531466921,3.5362,4331.2,4331.1,0.7247]
[1757531468611,3.8748,4331.2,4331.1,0.2982]
[1757531468815,0.431,4330.9,4329.9,2.89644198]
[1757531469016,3.6388,4330.6,4330.5,0.4288]
[1757531469218,3.5362,4330.6,4330.5,0.6397]
[1757531469416,3.5362,4330.6,4330.5,0.8553]
[1757531472618,3.5362,4330.6,4330.5,0.6397]
[1757531472824,3.6388,4330.6,4330.5,0.4288]
[1757531474225,3.5362,4330.6,4330.5,0.6397]
[1757531474426,3.5362,4330.6,4330.5,0.8553]
[1757531474620,3.2078,4330.6,4330.5,0.8553]
[1757531477122,3.608,4331.3,4331.2,0.7247]
[1757531478326,3.372,4331.3,4331.2,0.7247]
[1757531478527,3.2078,4331.3,4331.2,0.7247]
[1757531480030,3.372,4331.3,4331.2,0.7247]
[1757531485429,0.3284,4331.1,4331.0,0.4825934]
[1757531485626,0.431,4331.1,4331.0,0.4825934]
[1757531485826,3.372,4331.3,4331.2,0.7247]
[1757531486131,3.5362,4331.3,4331.2,0.7247]
[1757531487335,3.5362,4331.3,4330.7,0.236]
[1757531487336,0.431,4330.9,4330.8,0.2953]
[1757531487537,0.3284,4330.9,4330.8,0.5005]
[1757531487735,0.3284,4330.9,4330.8,0.7146]
[1757531488936,3.2078,4331.3,4331.0,0.125]
[1757531489136,3.5362,4331.3,4331.2,0.2052]
[1757531489326,3.5362,4331.3,4331.2,0.5005]
[1757531490747,3.5362,4331.3,4331.2,0.7146]
[1757531492747,3.6388,4331.3,4331.2,0.2953]
[1757531493547,0.1026,4331.2,4330.6,0.18101308]
[1757531493743,0.431,4330.8,4330.7,0.2953]
[1757531493942,3.5362,4330.8,4330.7,0.5005]
[1757531494148,3.5362,4330.8,4330.7,0.7146]
[1757531494852,3.5362,4330.8,4330.7,0.5005]
[1757531495149,3.6388,4330.8,4330.7,0.2953]
[1757531496047,0.431,4330.6,4330.5,0.2953]
[1757531496254,0.431,4330.6,4330.5,0.4203]
[1757531496444,0.3284,4330.6,4330.5,0.6255]
[1757531496651,0.3284,4330.6,4330.5,0.8396]
[1757531496950,0.1642,4330.6,4330.5,0.8396]
[1757531497251,0.431,4330.6,4330.5,0.2953]
[1757531497844,0.431,4330.6,4330.5,0.4203]
[1757531498246,0.3284,4330.6,4330.5,0.6255]
[1757531498442,0.3284,4330.6,4330.5,0.8396]
[1757531498854,3.2078,4330.8,4330.6,0.2953]
[1757531499055,3.372,4330.8,4330.7,0.4193]
[1757531499255,3.372,4330.8,4330.7,0.7146]
[1757531499857,3.5362,4330.8,4330.7,0.7146]
[1757531500055,3.5362,4330.8,4330.7,0.5005]
[1757531500356,3.6388,4330.8,4330.7,0.2953]
[1757531501056,3.5362,4330.8,4330.7,0.7146]
[1757531502559,3.372,4330.8,4330.7,0.7146]
[1757531502863,3.5362,4330.8,4330.7,0.7146]
[1757531503558,0.1026,4330.7,4330.6,0.2953]
[1757531503766,0.3284,4330.7,4330.6,0.7146]
[1757531506259,0.1642,4330.7,4330.6,0.7146]
[1757531508469,0.3284,4330.7,4330.6,0.7146]
[1757531508766,0.1642,4330.7,4330.6,0.7146]
[1757531509664,3.2078,4330.8,4330.6,0.4193]
[1757531509864,3.2078,4330.8,4330.7,0.7146]
[1757531514368,3.2078,4331.3,4330.7,0.7146]
[1757531514566,3.372,4331.3,4331.2,0.4193]
[1757531514767,3.2078,4331.8,4331.5,0.125]
[1757531514967,3.372,4331.8,4331.7,0.7146]
[1757531515367,0.1641,4332.1,4332.0,0.5443]
[1757531515567,0.3282,4332.1,4332.0,0.8396]
[1757531517673,0.3282,4332.1,4332.0,0.6255]
[1757531517874,0.431,4332.1,4332.0,0.6255]
[1757531518464,0.1028,4332.0,4331.5,0.125]
[1757531518663,0.3288,4331.2,4331.1,22.66104198]
[1757531518869,0.3288,4331.2,4331.1,19.7646]
[1757531519069,0.3288,4331.2,4331.1,19.9653]
[1757531519271,3.6394,4331.2,4331.1,19.5577]
[1757531519470,3.5366,4331.2,4331.1,19.7646]
[1757531519667,3.5366,4331.2,4331.1,19.9653]
[1757531520071,3.5366,4331.2,4331.1,0.9653]
[1757531520672,3.3722,4331.2,4331.1,0.9653]
[1757531521478,3.6394,4331.2,4331.1,0.5577]
[1757531521866,3.5366,4331.2,4331.1,0.7646]
[1757531522878,3.5366,4331.2,4331.1,0.9653]
[1757531527980,3.5366,4331.2,4331.1,0.5577]
[1757531527981,3.6394,4331.2,4331.1,0.5577]
[1757531528683,3.6394,4331.2,4331.1,0.236]
[1757531529276,3.6394,4331.2,4331.1,0.5577]
[1757531530181,3.6394,4331.2,4331.1,0.7646]
[1757531530783,3.6394,4331.2,4331.1,0.5286]
[1757531531278,3.6394,4331.2,4331.1,0.3217]
[1757531531479,0.3288,4330.7,4330.6,0.4429]
[1757531531686,0.3288,4330.7,4330.6,0.7646]
[1757531532086,0.4316,4330.7,4330.6,0.5577]
[1757531532284,0.1028,4330.6,4330.2,0.3217]
[1757531532487,0.4316,4330.3,4330.2,0.3217]
[1757531532686,0.3288,4330.3,4330.2,0.7293]
[1757531533388,0.3288,4330.3,4330.2,0.5286]
[1757531533591,0.4316,4330.3,4330.2,0.5286]
[1757531533788,0.3288,4330.3,4330.2,0.5286]
[1757531535389,0.3288,4330.3,4330.2,0.7293]
[1757531538090,0.1644,4330.3,4330.2,0.7293]
[1757531540805,0.3994,4330.6,4330.5,0.858]
[1757531541312,0.3288,4330.6,4330.5,0.858]
[1757531541508,3.2078,4330.7,4330.5,0.5363]
[1757531541803,3.2078,4330.7,4330.6,0.7293]
[1757531545599,3.3722,4330.7,4330.6,0.7293]
[1757531547907,3.2078,4330.7,4330.6,0.7293]
[1757531550903,3.2078,4331.2,4330.6,0.7293]
[1757531554112,0.4305,4330.2,4330.1,0.2957]
[1757531555219,0.4305,4330.2,4330.1,0.5107]
[1757531555410,0.328,4330.2,4330.1,0.5107]
[1757531556113,0.4305,4330.2,4330.1,0.2957]
[1757531557212,0.1025,4330.1,4329.8,0.5307]
[1757531557407,3.6383,4329.9,4329.8,0.5307]
[1757531557803,3.5358,4329.9,4329.8,0.9465]
[1757531559412,3.5358,4329.9,4329.8,0.7457]
[1757531560007,3.5358,4329.9,4329.8,0.9465]
[1757531567824,3.6383,4329.9,4329.8,0.2957]
[1757531568026,3.6383,4329.9,4329.8,0.5307]
[1757531568718,0.328,4329.3,4329.0,0.1253]
[1757531568918,0.328,4329.3,4328.7,2.89644198]
[1757531568919,0.4305,4328.8,4328.5,0.421]
[1757531569224,3.6383,4328.6,4328.5,0.2957]
[1757531570114,0.328,4328.4,4328.3,0.5307]
[1757531570319,0.4305,4328.4,4328.3,0.5307]
[1757531573216,3.2078,4328.6,4328.3,0.9465]
[1757531573421,3.3718,4328.6,4328.5,0.8368]
[1757531573623,3.5358,4328.6,4328.5,0.8368]
[1757531573933,3.6382,4328.6,4328.5,0.421]
[1757531574225,3.6382,4328.6,4328.5,0.636]
[1757531574425,3.5358,4328.6,4328.5,0.636]
[1757531575024,3.6382,4328.6,4328.5,0.421]
[1757531576230,3.5358,4328.6,4328.5,0.636]
[1757531578238,3.6384,4328.6,4328.5,0.421]
[1757531578926,3.6384,4328.6,4328.5,0.2957]
[1757531579134,0.4308,4328.4,4328.3,0.235]
[1757531580140,0.4308,4328.4,4328.3,0.5623]
[1757531580347,0.4308,4328.4,4328.3,0.3273]
[1757531580736,0.3282,4328.4,4328.0,0.87273981]
[1757531580938,3.2078,4328.6,4328.1,0.3273]
[1757531580939,0.1026,4328.5,4328.1,0.3273]
[1757531581244,0.4308,4328.2,4328.1,0.3273]
[1757531582039,0.1641,4328.1,4328.0,0.97853981]
[1757531582435,0.1641,4328.1,4328.0,1.30583981]
[1757531582636,0.3282,4328.1,4328.0,1.30583981]
[1757531583036,3.3104,4328.6,4328.0,1.30583981]
[1757531583037,3.3719,4328.6,4328.5,0.8857]
[1757531583541,3.536,4328.6,4328.5,0.8857]
[1757531585243,3.2078,4328.6,4328.5,0.8857]
[1757531585439,3.536,4329.2,4329.1,0.7585]
[1757531585643,3.2078,4329.2,4329.1,0.7585]
[1757531585843,3.536,4329.2,4329.1,0.7585]
[1757531586140,3.536,4329.2,4329.1,0.5409]
[1757531588146,3.536,4329.2,4329.1,0.7585]
[1757531590947,3.536,4329.2,4328.9,0.18408901]
[1757531590948,3.6386,4329.2,4328.9,0.235]
[1757531591147,0.4308,4329.0,4328.9,0.235]
[1757531591344,0.1026,4328.9,4328.5,0.4545]
[1757531591546,0.1026,4328.9,4327.7,3.24801032]
[1757531591547,0.3282,4328.4,4328.3,0.3273]
[1757531591854,0.4308,4328.4,4328.3,0.3273]
[1757531592045,0.4308,4328.1,4328.0,0.3273]
[1757531592250,0.1026,4327.7,4327.5,0.85980695]
[1757531592442,3.6386,4327.6,4327.5,0.73260695]
[1757531592640,3.86967001,4327.6,4327.5,0.73260695]
[1757531592847,3.6386,4327.6,4327.5,0.73260695]
[1757531593142,7.86968,4327.6,4327.0,0.4545]
[1757531593343,3.2078,4327.1,4326.2,0.3273]
[1757531593545,3.2078,4326.6,4326.0,1.97703784]
[1757531593752,3.2078,4326.1,4326.0,1.97703784]
[1757531593948,3.4428,4326.1,4325.5,0.4545]
[1757531594250,0.33178008,4327.6,4324.6,0.3273]
[1757531594251,3.2078,4325.6,4324.6,0.3273]
[1757531594548,3.2078,4325.2,4325.1,0.3273]
[1757531594744,3.4428,4325.2,4325.1,0.3273]
[1757531595149,3.4428,4325.2,4325.0,0.1272]
[1757531595452,3.2078,4325.2,4325.1,0.3273]
[1757531595645,3.4428,4325.2,4325.1,0.3273]
[1757531596047,3.2078,4325.2,4325.1,0.5409]
[1757531596246,3.2078,4325.2,4325.1,0.7585]
[1757531596848,0.235,4325.7,4325.6,0.3273]
[1757531597050,3.2078,4325.8,4325.6,0.5409]
[1757531597251,3.2078,4325.8,4325.7,0.3273]
[1757531597749,3.4428,4325.8,4325.7,0.3273]
[1757531598357,3.4428,4325.8,4325.7,0.35897792]
[1757531598561,3.4428,4325.8,4325.7,0.57257792]
[1757531598745,3.4428,4325.8,4325.7,0.35897792]
[1757531599956,3.4428,4325.8,4325.5,0.1272]
[1757531599957,7.4428,4325.8,4325.5,0.1272]
[1757531600154,7.4428,4325.8,4325.6,0.3273]
[1757531600350,7.4428,4325.8,4325.5,0.1272]
[1757531600754,7.4428,4325.8,4325.6,0.3273]
[1757531600955,7.4428,4325.8,4325.5,0.1272]
[1757531601551,7.4428,4325.8,4325.6,0.3273]
[1757531601753,7.4428,4325.8,4325.5,0.1272]
[1757531602258,7.4428,4325.8,4325.6,0.3273]
[1757531603254,7.4428,4325.8,4325.5,0.1272]
[1757531603951,7.4428,4325.8,4325.6,0.3273]
[1757531604958,4.0,4325.7,4325.0,0.1272]
[1757531605261,3.2078,4325.1,4324.5,0.4545]
[1757531605447,3.2078,4324.6,4324.5,0.4545]
[1757531605651,3.4428,4324.6,4324.5,0.4545]
[1757531608356,3.2078,4324.6,4324.5,0.6681]
[1757531608555,3.2078,4324.6,4324.5,0.8763]
[1757531609557,3.2078,4324.6,4324.5,4.8763]
[1757531610857,3.4428,4324.6,4324.5,0.4545]
[1757531611460,7.4428,4324.6,4324.5,0.1272]
[1757531612762,7.4428,4324.6,4324.0,0.1272]
[1757531612959,7.4428,4324.6,4324.0,0.4372]
[1757531612960,3.2078,4324.1,4324.0,0.4372]
[1757531613160,3.4428,4324.1,4324.0,0.4372]
[1757531614553,3.674,4324.1,4324.0,0.4372]
[1757531615062,3.674,4324.1,4324.0,0.1272]
[1757531615262,3.674,4324.1,4324.0,0.4372]
[1757531615763,3.439,4324.1,4324.0,0.4372]
[1757531615963,3.674,4324.1,4324.0,0.653]
[1757531617963,3.674,4324.1,4324.0,0.8612]
[1757531618367,3.439,4324.1,4324.0,0.8612]
[1757531618563,3.674,4324.1,4324.0,0.8612]
[1757531621274,4.326327,4324.1,4324.0,0.8612]
[1757531622162,3.674,4324.1,4324.0,0.8612]
[1757531622362,4.32749796,4324.1,4324.0,0.8612]
[1757531622671,0.2312,4324.1,4324.0,4.8612]
[1757531624473,0.2312,4324.1,4324.0,5.27741]
[1757531624670,0.2312,4324.1,4324.0,4.8612]
[1757531624867,0.2312,4324.1,4324.0,5.27741]
[1757531625875,0.2312,4324.1,4324.0,0.8612]
[1757531632287,0.2312,4324.1,4324.0,5.27741]
[1757531632575,3.2078,4325.5,4324.9,0.734]
[1757531632781,3.2078,4325.5,4324.5,0.54386]
[1757531632782,0.85497707,4325.4,4325.3,0.424]
[1757531633176,0.85497707,4325.4,4325.3,0.734]
[1757531633377,0.2155,4325.4,4325.3,0.734]
[1757531633775,3.2078,4325.5,4325.4,0.31]
[1757531634078,3.2078,4325.5,4325.4,0.5258]
[1757531634079,0.7405,4325.5,4325.4,0.5258]
[1757531634278,0.7405,4325.5,4325.4,0.734]
[1757531635573,0.7405,4325.5,4324.5,3.75165]
[1757531635574,0.3101,4325.4,4324.6,0.31]
[1757531635776,0.3101,4325.4,4324.6,0.5258]
[1757531635777,0.7405,4324.7,4324.6,0.5258]
[1757531636672,0.7405,4324.7,4324.6,0.734]
[1757531636885,0.4304,4324.7,4324.6,0.734]
[1757531638080,3.3185,4325.5,4324.5,0.1277]
[1757531638081,0.6479,4325.3,4325.2,0.2069]
[1757531638278,0.7151,4325.3,4325.2,0.7287]
[1757531638485,0.4129,4325.3,4325.2,0.7287]
[1757531639983,3.2078,4326.1,4325.2,0.4252]
[1757531640284,3.2078,4326.1,4326.0,0.8573]
[1757531640285,3.6207,4326.1,4326.0,0.8573]
[1757531640789,0.4129,4326.1,4326.0,0.8573]
[1757531641182,0.7151,4326.1,4326.0,0.8573]
[1757531641486,0.7151,4326.1,4326.0,0.7287]
[1757531643291,0.7151,4326.1,4326.0,0.5104]
[1757531643788,3.2078,4326.7,4326.0,0.7287]
[1757531644084,3.9229,4327.9,4327.1,0.3035]
[1757531644277,0.7151,4327.2,4327.1,19.7287]
[1757531644480,0.5404,4327.0,4326.9,0.236]
[1757531644688,0.4129,4326.7,4326.6,0.236]
[1757531644888,0.7151,4326.7,4326.6,19.4429]
[1757531645483,0.5172,4326.7,4326.6,0.9647]
[1757531645883,0.1275,4327.0,4326.6,0.9647]
[1757531646091,3.2078,4327.3,4326.6,0.9647]
[1757531646092,3.725,4327.3,4327.2,0.5104]
[1757531646388,0.215,4327.3,4327.2,0.7287]
[1757531646590,0.3022,4327.7,4327.2,0.7287]
[1757531646784,0.5172,4327.3,4327.2,0.7287]
[1757531647883,3.2078,4327.8,4327.2,0.4252]
[1757531648184,3.725,4327.8,4327.7,0.7287]
[1757531648389,3.9229,4327.8,4327.7,0.7287]
[1757531648786,3.725,4327.8,4327.7,0.7287]
[1757531649089,0.215,4326.8,4326.7,0.7287]
[1757531649285,0.1275,4327.5,4326.7,0.9647]
[1757531649586,0.5172,4327.4,4327.3,0.2069]
[1757531649782,0.7151,4327.4,4327.3,0.2069]
[1757531649982,0.1275,4327.0,4326.9,0.236]
[1757531650189,0.8426,4327.0,4326.9,0.4429]
[1757531652190,0.1275,4327.5,4326.9,0.6612]
[1757531652389,0.3022,4327.5,4327.4,0.7287]
[1757531652589,0.3022,4327.7,4327.5,0.3035]
[1757531652796,0.5172,4327.7,4327.6,0.7287]
[1757531653390,0.5172,4327.7,4327.1,0.3035]
[1757531653391,0.7151,4327.7,4327.1,0.3035]
[1757531653693,0.3022,4327.6,4326.7,0.3035]
[1757531653894,0.7151,4327.2,4327.1,0.236]
[1757531654193,0.7151,4327.2,4327.1,0.4429]
[1757531654584,0.5172,4327.4,4327.3,0.7287]
[1757531655688,0.7151,4327.4,4327.3,0.4252]
[1757531655888,0.3022,4327.3,4326.6,3.2078]
[1757531656095,3.9229,4326.8,4326.7,0.4429]
[1757531657894,3.9229,4326.8,4326.3,19.0]
[1757531658095,0.7151,4326.4,4326.3,19.2069]
[1757531658293,0.7151,4326.4,4326.3,0.6612]
[1757531658489,0.3022,4326.3,4326.2,0.236]
[1757531658685,0.7151,4326.3,4326.2,0.4429]
[1757531659299,0.7151,4326.3,4326.2,0.9647]
[1757531659492,0.3022,4326.7,4326.2,0.9647]
[1757531659688,0.7151,4326.7,4326.6,0.2069]
[1757531659900,0.7151,4326.7,4326.6,0.7287]
[1757531660200,0.215,4326.7,4326.6,0.4252]
[1757531660404,0.7151,4326.7,4326.6,0.7287]
[1757531660798,0.7151,4326.7,4326.2,0.236]
[1757531660799,0.7151,4326.7,4326.2,0.5395]
[1757531660998,0.215,4326.3,4326.2,0.9647]
[1757531661198,0.5172,4326.3,4326.2,0.9647]